{"text_format":"1","workbook":"xlsx","n_sheets":2,"sheets":["R37CLSD","Sheet1"],"not_rendered":{"charts":0,"images":0,"macros":0,"external_links":0,"defined_names":0,"comments":0,"pivot_tables":0},"unopened":[],"bounds":{"document_bytes":16777216,"sheet_cells":100000,"rows_first":2000,"rows_last":500,"rows_between":2000,"halvings":0,"cell_chars":16384,"cell_head_chars":4096},"cells_cut":0,"cells_raw":0,"read":"whole","date_system":"1900"}

{"sheet":"R37CLSD","index":0,"n_rows":62,"n_cols":9,"rows_kept":62,"cut":false,"hidden":false,"merged":[[0,0,0,6],[1,1,1,4],[5,0,5,6],[4,0,4,6],[2,1,2,2]]}
["Charity repayment claim form forJersey Gift Support donation certificates"]
["Enter charity name:"]
["Enter charity's tax identification number (TIN):",null,null,"Enter registered charity number:"]
[null,"Running total of this repayment claim:",null,{"$f":"SUM(I15:I62)","v":0}]
["Payments received under the scheme for lump sum donations of £50 or more (Jersey charities only)"]
["All donations below have met the requirements for the Jersey Gift Support scheme:"]
["the donation is made in money"]
["it will not be repaid"]
["it is not due under a deed of covenant"]
["it is not associated with the acquisition of property by the charity"]
["there is no benefit to the donor from making the donation"]
["the donor was resident in Jersey at the time the donation was made"]
["the total donations made by the donor do not exceed £500,000 in any tax year"]
[]
["Donor's first name","Donor's surname","Donor's TIN (Tax identification number)","Donor's postcode","Date of donation (first date if regular donation)","Donation frequency","Total amount of donation","Total value of donation (including repayment)","Repayment amount "]
[null,null,null,null,null,null,null,{"$f":"SUM(G16*100)/80","v":0},{"$f":"SUM(H16-G16)","v":0}]
[null,null,null,null,null,null,null,0,0]
[null,null,null,null,null,null,null,0,0]
[null,null,null,null,null,null,null,0,0]
[null,null,null,null,null,null,null,0,0]
[null,null,null,null,null,null,null,{"$f":"SUM(G21*100)/80","v":0},{"$f":"SUM(H21-G21)","v":0}]
[null,null,null,null,null,null,null,0,0]
[null,null,null,null,null,null,null,0,0]
[null,null,null,null,null,null,null,0,0]
[null,null,null,null,null,null,null,0,0]
[null,null,null,null,null,null,null,0,0]
[null,null,null,null,null,null,null,0,0]
[null,null,null,null,null,null,null,0,0]
[null,null,null,null,null,null,null,0,0]
[null,null,null,null,null,null,null,0,0]
[null,null,null,null,null,null,null,0,0]
[null,null,null,null,null,null,null,0,0]
[null,null,null,null,null,null,null,0,0]
[null,null,null,null,null,null,null,0,0]
[null,null,null,null,null,null,null,0,0]
[null,null,null,null,null,null,null,0,0]
[null,null,null,null,null,null,null,0,0]
[null,null,null,null,null,null,null,0,0]
[null,null,null,null,null,null,null,0,0]
[null,null,null,null,null,null,null,0,0]
[null,null,null,null,null,null,null,0,0]
[null,null,null,null,null,null,null,0,0]
[null,null,null,null,null,null,null,0,0]
[null,null,null,null,null,null,null,0,0]
[null,null,null,null,null,null,null,0,0]
[null,null,null,null,null,null,null,0,0]
[null,null,null,null,null,null,null,0,0]
[null,null,null,null,null,null,null,0,0]
[null,null,null,null,null,null,null,0,0]
[null,null,null,null,null,null,null,0,0]
[null,null,null,null,null,null,null,0,0]
[null,null,null,null,null,null,null,0,0]
[null,null,null,null,null,null,null,0,0]
[null,null,null,null,null,null,null,0,0]
[null,null,null,null,null,null,null,0,0]
[null,null,null,null,null,null,null,0,0]
[null,null,null,null,null,null,null,0,0]
[null,null,null,null,null,null,null,0,0]
[null,null,null,null,null,null,null,0,0]
[null,null,null,null,null,null,null,0,0]
[null,null,null,null,null,null,null,0,0]
[null,null,null,null,null,null,null,0,0]

{"sheet":"Sheet1","index":1,"n_rows":5,"n_cols":2,"rows_kept":5,"cut":false,"hidden":true,"merged":[]}
[]
[null,"One off"]
[null,"Weekly"]
[null,"Monthly"]
[null,"Annually"]